[Event "Late-Titled-Tuesday-Blitz-October-10-2023"]
[Site "Chess.com"]
[Date "2023.10.10"]
[Round "3"]
[White "ElCoachRene"]
[Black "szachmistrz2500"]
[Result "0-1"]
[WhiteElo "2168"]
[BlackElo "2408"]
[TimeControl "180+1"]
[EndTime "14:25:53 PDT"]
[Termination "szachmistrz2500 won by resignation"]

1. d4 {[%clk 0:03:00.9]} 1... d5 {[%clk 0:02:53]} 2. Bf4 {[%clk 0:03:00.2]} 2...
Nf6 {[%clk 0:02:48.7]} 3. e3 {[%clk 0:03:00.8]} 3... c5 {[%clk 0:02:48.8]} 4. c3
{[%clk 0:03:00.1]} 4... Nc6 {[%clk 0:02:46.2]} 5. Nd2 {[%clk 0:03:00]} 5... Qb6
{[%clk 0:02:44.9]} 6. Qb3 {[%clk 0:02:58.9]} 6... c4 {[%clk 0:02:45]} 7. Qc2
{[%clk 0:02:58.4]} 7... g6 {[%clk 0:02:38.8]} 8. Ngf3 {[%clk 0:02:58.1]} 8...
Bf5 {[%clk 0:02:37.5]} 9. Qc1 {[%clk 0:02:58.7]} 9... Bg7 {[%clk 0:02:36.3]} 10.
h3 {[%clk 0:02:58.9]} 10... h5 {[%clk 0:02:33.1]} 11. Be2 {[%clk 0:02:58.8]}
11... O-O {[%clk 0:02:31]} 12. O-O {[%clk 0:02:58.5]} 12... Ne4 {[%clk
0:02:28.3]} 13. Nxe4 {[%clk 0:02:55.6]} 13... Bxe4 {[%clk 0:02:26.9]} 14. Nd2
{[%clk 0:02:53.7]} 14... Bf5 {[%clk 0:02:26.4]} 15. b3 {[%clk 0:02:51.6]} 15...
e5 {[%clk 0:02:16.8]} 16. Bg3 {[%clk 0:02:44.1]} 16... exd4 {[%clk 0:02:15.4]}
17. exd4 {[%clk 0:02:44.1]} 17... cxb3 {[%clk 0:02:12.5]} 18. axb3 {[%clk
0:02:43]} 18... Rac8 {[%clk 0:02:10.4]} 19. Qa3 {[%clk 0:02:40.4]} 19... Rfe8
{[%clk 0:02:06.9]} 20. Bf3 {[%clk 0:02:38]} 20... Be4 {[%clk 0:02:02.9]} 21.
Rfe1 {[%clk 0:02:28.9]} 21... Bxf3 {[%clk 0:01:58.8]} 22. Nxf3 {[%clk
0:02:28.6]} 22... a6 {[%clk 0:01:59.1]} 23. Bd6 {[%clk 0:01:56.1]} 23... Qb5
{[%clk 0:01:53.1]} 24. Qa2 {[%clk 0:01:28.2]} 24... Qd3 {[%clk 0:01:45.2]} 25.
Qb2 {[%clk 0:01:16.5]} 25... Re4 {[%clk 0:01:37.7]} 26. Nd2 {[%clk 0:01:10.6]}
26... Re2 {[%clk 0:01:28.8]} 27. Rxe2 {[%clk 0:00:48.4]} 27... Qxe2 {[%clk
0:01:28.7]} 28. Nc4 {[%clk 0:00:43.7]} 28... Qd3 {[%clk 0:01:17.1]} 29. Nb6
{[%clk 0:00:39.5]} 29... Rd8 {[%clk 0:01:11.8]} 30. Bf4 {[%clk 0:00:28.6]} 30...
Nxd4 {[%clk 0:01:08.8]} 31. Bc7 {[%clk 0:00:17.1]} 31... Ne2+ {[%clk 0:01:07]}
32. Kh1 {[%clk 0:00:16.2]} 32... Bxc3 {[%clk 0:01:07]} 33. Qxc3 {[%clk
0:00:13.2]} 33... Qxc3 {[%clk 0:01:06.2]} 0-1

[Event "Late-Titled-Tuesday-Blitz-October-10-2023"]
[Site "Chess.com"]
[Date "2023.10.10"]
[Round "3"]
[White "Zapateado"]
[Black "borocotoajua"]
[Result "0-1"]
[WhiteElo "2348"]
[BlackElo "2567"]
[TimeControl "180+1"]
[EndTime "14:25:58 PDT"]
[Termination "borocotoajua won by resignation"]

1. c4 {[%clk 0:02:53.4]} 1... Nf6 {[%clk 0:02:59.6]} 2. Nc3 {[%clk 0:02:53.3]}
2... g6 {[%clk 0:02:59.9]} 3. g3 {[%clk 0:02:52.9]} 3... d6 {[%clk 0:03:00.1]}
4. Bg2 {[%clk 0:02:52.2]} 4... Bg7 {[%clk 0:03:00.5]} 5. e4 {[%clk 0:02:52.7]}
5... O-O {[%clk 0:03:00.6]} 6. Nge2 {[%clk 0:02:52.8]} 6... e5 {[%clk
0:03:00.2]} 7. O-O {[%clk 0:02:53.2]} 7... Nc6 {[%clk 0:02:53]} 8. d3 {[%clk
0:02:52.9]} 8... a6 {[%clk 0:02:50.3]} 9. h3 {[%clk 0:02:50.8]} 9... Rb8 {[%clk
0:02:49.1]} 10. a4 {[%clk 0:02:50.9]} 10... Ne8 {[%clk 0:02:45.8]} 11. f4 {[%clk
0:02:50.3]} 11... f5 {[%clk 0:02:45.3]} 12. Be3 {[%clk 0:02:48.3]} 12... Nd4
{[%clk 0:02:43.9]} 13. Bf2 {[%clk 0:02:44.3]} 13... Be6 {[%clk 0:02:39.5]} 14.
Nxd4 {[%clk 0:02:43.9]} 14... exd4 {[%clk 0:02:39.1]} 15. Ne2 {[%clk 0:02:44.3]}
15... c5 {[%clk 0:02:36.7]} 16. b4 {[%clk 0:02:43.7]} 16... fxe4 {[%clk
0:02:34.7]} 17. dxe4 {[%clk 0:02:23.9]} 17... Bxc4 {[%clk 0:02:34.3]} 18. Rc1
{[%clk 0:02:21.2]} 18... b5 {[%clk 0:02:30.5]} 19. axb5 {[%clk 0:02:08]} 19...
axb5 {[%clk 0:02:31.4]} 20. bxc5 {[%clk 0:02:06.9]} 20... dxc5 {[%clk
0:02:32.3]} 21. e5 {[%clk 0:02:06.9]} 21... Nc7 {[%clk 0:02:24.8]} 22. Qd2
{[%clk 0:01:30.3]} 22... Nd5 {[%clk 0:02:20.4]} 23. Rfe1 {[%clk 0:01:23.6]}
23... Ra8 {[%clk 0:02:02.8]} 24. Rb1 {[%clk 0:00:42.4]} 24... Ra2 {[%clk
0:01:58.6]} 25. Rb2 {[%clk 0:00:41.3]} 25... Rxb2 {[%clk 0:01:58.7]} 26. Qxb2
{[%clk 0:00:42.1]} 26... g5 {[%clk 0:01:57.7]} 27. Qd2 {[%clk 0:00:25.5]} 27...
Bxe2 {[%clk 0:01:51.2]} 28. Qxe2 {[%clk 0:00:21.7]} 28... gxf4 {[%clk
0:01:50.4]} 29. Qxb5 {[%clk 0:00:18.8]} 29... fxg3 {[%clk 0:01:49]} 30. Bxg3
{[%clk 0:00:16.1]} 30... Ne3 {[%clk 0:01:43.9]} 31. Qxc5 {[%clk 0:00:13.2]}
31... Nxg2 {[%clk 0:01:42.1]} 32. Kxg2 {[%clk 0:00:14.1]} 32... Qa8+ {[%clk
0:01:42.2]} 33. Kg1 {[%clk 0:00:13.2]} 33... Qf3 {[%clk 0:01:40.6]} 34. Qc4+
{[%clk 0:00:07]} 34... Kh8 {[%clk 0:01:40]} 35. Bh4 {[%clk 0:00:06.8]} 35... d3
{[%clk 0:01:23.7]} 36. Qe4 {[%clk 0:00:05.9]} 36... d2 {[%clk 0:01:20.3]} 37.
Qxf3 {[%clk 0:00:05.7]} 37... dxe1=Q+ {[%clk 0:01:20.3]} 38. Bxe1 {[%clk
0:00:05]} 38... Rxf3 {[%clk 0:01:20.2]} 39. Kg2 {[%clk 0:00:04.9]} 39... Re3
{[%clk 0:01:19.6]} 0-1

[Event "Late-Titled-Tuesday-Blitz-October-10-2023"]
[Site "Chess.com"]
[Date "2023.10.10"]
[Round "3"]
[White "Harald_Schmidt"]
[Black "SchachmattTV_Tobi"]
[Result "1-0"]
[WhiteElo "2354"]
[BlackElo "2549"]
[TimeControl "180+1"]
[EndTime "14:25:58 PDT"]
[Termination "Harald_Schmidt won on time"]

1. e4 {[%clk 0:03:00.9]} 1... e5 {[%clk 0:02:47.1]} 2. Nf3 {[%clk 0:02:56.4]}
2... Nc6 {[%clk 0:02:46.8]} 3. Bb5 {[%clk 0:02:55.2]} 3... a6 {[%clk 0:02:45.9]}
4. Bxc6 {[%clk 0:02:54.8]} 4... dxc6 {[%clk 0:02:44.8]} 5. d3 {[%clk 0:02:55.7]}
5... Bd6 {[%clk 0:02:34.2]} 6. a3 {[%clk 0:02:54.4]} 6... Nf6 {[%clk 0:02:31.8]}
7. h3 {[%clk 0:02:50.7]} 7... Nd7 {[%clk 0:02:31.3]} 8. Be3 {[%clk 0:02:49.5]}
8... O-O {[%clk 0:02:29.3]} 9. Nbd2 {[%clk 0:02:48.4]} 9... Nc5 {[%clk
0:02:28.6]} 10. Nc4 {[%clk 0:02:43.4]} 10... f6 {[%clk 0:02:22.1]} 11. Nxd6
{[%clk 0:02:39.4]} 11... cxd6 {[%clk 0:02:18.9]} 12. O-O {[%clk 0:02:32.9]}
12... Re8 {[%clk 0:02:11.2]} 13. Re1 {[%clk 0:02:29.8]} 13... Kh8 {[%clk
0:02:07.4]} 14. b4 {[%clk 0:02:25.4]} 14... Ne6 {[%clk 0:01:54.7]} 15. d4 {[%clk
0:02:24.4]} 15... exd4 {[%clk 0:01:51.8]} 16. Nxd4 {[%clk 0:02:22.5]} 16... Nxd4
{[%clk 0:01:49.7]} 17. Bxd4 {[%clk 0:02:21.8]} 17... Qc7 {[%clk 0:01:49.6]} 18.
Qf3 {[%clk 0:02:10.7]} 18... Be6 {[%clk 0:01:46.9]} 19. Rad1 {[%clk 0:02:08]}
19... Rad8 {[%clk 0:01:45.5]} 20. Qg3 {[%clk 0:02:05.7]} 20... Rd7 {[%clk
0:01:34.6]} 21. f4 {[%clk 0:02:02.2]} 21... c5 {[%clk 0:01:23]} 22. bxc5 {[%clk
0:02:01.4]} 22... dxc5 {[%clk 0:01:23.9]} 23. Bc3 {[%clk 0:02:00.1]} 23... Red8
{[%clk 0:00:51]} 24. Qf3 {[%clk 0:01:59.1]} 24... Kg8 {[%clk 0:00:38.6]} 25.
Rxd7 {[%clk 0:01:47.7]} 25... Qxd7 {[%clk 0:00:27.9]} 26. f5 {[%clk 0:01:47.4]}
26... Bf7 {[%clk 0:00:25.8]} 27. e5 {[%clk 0:01:47.1]} 27... fxe5 {[%clk
0:00:23.9]} 28. Bxe5 {[%clk 0:01:46.3]} 28... Qd2 {[%clk 0:00:22.8]} 29. Re2
{[%clk 0:01:37.2]} 29... Qd1+ {[%clk 0:00:21.5]} 30. Kh2 {[%clk 0:01:37.1]}
30... Rd7 {[%clk 0:00:08.5]} 31. Qe3 {[%clk 0:01:23.8]} 31... Qd5 {[%clk
0:00:05.3]} 32. Qg5 {[%clk 0:01:18]} 32... Be8 {[%clk 0:00:03.6]} 33. f6 {[%clk
0:01:14.1]} 33... g6 {[%clk 0:00:02.5]} 34. Qf4 {[%clk 0:01:11.9]} 1-0

[Event "Late-Titled-Tuesday-Blitz-October-10-2023"]
[Site "Chess.com"]
[Date "2023.10.10"]
[Round "3"]
[White "egnfanclub"]
[Black "cthake"]
[Result "1-0"]
[WhiteElo "2370"]
[BlackElo "1962"]
[TimeControl "180+1"]
[EndTime "14:25:58 PDT"]
[Termination "egnfanclub won on time"]

1. e4 {[%clk 0:03:00.9]} 1... c5 {[%clk 0:02:59.5]} 2. Nc3 {[%clk 0:03:00.2]}
2... Nc6 {[%clk 0:02:58.6]} 3. f4 {[%clk 0:03:01.1]} 3... e6 {[%clk 0:02:57.6]}
4. Nf3 {[%clk 0:03:02]} 4... d5 {[%clk 0:02:57.5]} 5. Bb5 {[%clk 0:03:01.6]}
5... Ne7 {[%clk 0:02:53.9]} 6. exd5 {[%clk 0:02:55.9]} 6... Nxd5 {[%clk
0:02:53.9]} 7. Qe2 {[%clk 0:02:56.5]} 7... Be7 {[%clk 0:02:48.2]} 8. Bxc6+
{[%clk 0:02:54.5]} 8... bxc6 {[%clk 0:02:47.5]} 9. d3 {[%clk 0:02:55]} 9... O-O
{[%clk 0:02:46.7]} 10. O-O {[%clk 0:02:54.5]} 10... Ba6 {[%clk 0:02:38.4]} 11.
Bd2 {[%clk 0:02:45.5]} 11... Rb8 {[%clk 0:02:36.8]} 12. b3 {[%clk 0:02:44.9]}
12... Bf6 {[%clk 0:02:34.6]} 13. Ne5 {[%clk 0:02:44.6]} 13... Qc7 {[%clk
0:02:25.9]} 14. Na4 {[%clk 0:02:36.5]} 14... Bxe5 {[%clk 0:01:53.6]} 15. fxe5
{[%clk 0:02:33.5]} 15... Qe7 {[%clk 0:01:52]} 16. c4 {[%clk 0:02:24.3]} 16...
Nb4 {[%clk 0:01:49.3]} 17. Be3 {[%clk 0:02:19.4]} 17... Qb7 {[%clk 0:01:20.7]}
18. Nxc5 {[%clk 0:02:12.5]} 18... Qc8 {[%clk 0:01:20.3]} 19. Qg4 {[%clk
0:01:57.8]} 19... Nc2 {[%clk 0:01:15]} 20. Bh6 {[%clk 0:01:54.8]} 20... g6
{[%clk 0:01:11.5]} 21. Rac1 {[%clk 0:01:29.2]} 21... Nb4 {[%clk 0:00:41.2]} 22.
Qf4 {[%clk 0:01:19.4]} 22... Qd8 {[%clk 0:00:14.9]} 23. Bxf8 {[%clk 0:01:12.7]}
23... Qxf8 {[%clk 0:00:14.7]} 24. Nd7 {[%clk 0:01:08.4]} 24... Nxd3 {[%clk
0:00:07.8]} 25. Qf3 {[%clk 0:00:49]} 1-0

[Event "Late-Titled-Tuesday-Blitz-October-10-2023"]
[Site "Chess.com"]
[Date "2023.10.10"]
[Round "3"]
[White "FM_Kappeler"]
[Black "Chessdreamer2020"]
[Result "1-0"]
[WhiteElo "2306"]
[BlackElo "2527"]
[TimeControl "180+1"]
[EndTime "14:26:09 PDT"]
[Termination "FM_Kappeler won by checkmate"]

1. d4 {[%clk 0:03:00.9]} 1... d6 {[%clk 0:03:00.4]} 2. Nf3 {[%clk 0:02:58.9]}
2... Bg4 {[%clk 0:03:00.7]} 3. c4 {[%clk 0:02:57.6]} 3... Bxf3 {[%clk 0:03:00]}
4. exf3 {[%clk 0:02:57.7]} 4... g6 {[%clk 0:03:00.3]} 5. Nc3 {[%clk 0:02:50.8]}
5... Bg7 {[%clk 0:03:00.6]} 6. Be3 {[%clk 0:02:49.8]} 6... e6 {[%clk 0:03:00]}
7. h4 {[%clk 0:02:45.1]} 7... h5 {[%clk 0:02:58.1]} 8. Qd2 {[%clk 0:02:43.9]}
8... Ne7 {[%clk 0:02:58.2]} 9. Be2 {[%clk 0:02:31.7]} 9... d5 {[%clk 0:02:57.8]}
10. b3 {[%clk 0:02:26.6]} 10... Nbc6 {[%clk 0:02:57.8]} 11. Rd1 {[%clk
0:02:10.8]} 11... Qd7 {[%clk 0:02:55.9]} 12. c5 {[%clk 0:01:57.4]} 12... Nf5
{[%clk 0:02:53.4]} 13. a3 {[%clk 0:01:33.8]} 13... Ncxd4 {[%clk 0:02:47.3]} 14.
b4 {[%clk 0:01:24.9]} 14... Nxe2 {[%clk 0:02:42.8]} 15. Nxe2 {[%clk 0:01:22.6]}
15... O-O-O {[%clk 0:02:37.4]} 16. Bg5 {[%clk 0:01:21.5]} 16... f6 {[%clk
0:02:36.9]} 17. Bf4 {[%clk 0:01:20.9]} 17... e5 {[%clk 0:02:37.1]} 18. Bh2
{[%clk 0:01:20.1]} 18... d4 {[%clk 0:02:35.6]} 19. Ng3 {[%clk 0:01:17.8]} 19...
Nxg3 {[%clk 0:02:34.8]} 20. Bxg3 {[%clk 0:01:16.7]} 20... f5 {[%clk 0:02:34.7]}
21. O-O {[%clk 0:01:08.6]} 21... Bf6 {[%clk 0:02:31.6]} 22. f4 {[%clk
0:00:54.6]} 22... e4 {[%clk 0:02:31.3]} 23. Qa2 {[%clk 0:00:42.2]} 23... d3
{[%clk 0:02:27.8]} 24. Qd2 {[%clk 0:00:34]} 24... Rhe8 {[%clk 0:02:25.2]} 25.
Rfe1 {[%clk 0:00:28.2]} 25... Qa4 {[%clk 0:02:23.5]} 26. Rc1 {[%clk 0:00:23]}
26... Kb8 {[%clk 0:02:16.4]} 27. Kh2 {[%clk 0:00:22]} 27... Qxa3 {[%clk
0:02:12.7]} 28. f3 {[%clk 0:00:22]} 28... exf3 {[%clk 0:02:04.1]} 29. gxf3
{[%clk 0:00:20.1]} 29... Qb2 {[%clk 0:01:57.7]} 30. Qxb2 {[%clk 0:00:18.2]}
30... Bxb2 {[%clk 0:01:57.5]} 31. Rxe8 {[%clk 0:00:18.1]} 31... Rxe8 {[%clk
0:01:57.7]} 32. Rd1 {[%clk 0:00:18.5]} 32... Re2+ {[%clk 0:01:54.9]} 33. Kh3
{[%clk 0:00:17.4]} 33... d2 {[%clk 0:01:53.7]} 34. b5 {[%clk 0:00:15.3]} 34...
Bc3 {[%clk 0:01:53.3]} 35. c6 {[%clk 0:00:15.2]} 35... Re1 {[%clk 0:01:51.2]}
36. Bxe1 {[%clk 0:00:13.1]} 36... bxc6 {[%clk 0:01:45.5]} 37. Bxd2 {[%clk
0:00:12.5]} 37... Bxd2 {[%clk 0:01:45.6]} 38. Rxd2 {[%clk 0:00:12.7]} 38... cxb5
{[%clk 0:01:46.5]} 39. Rg2 {[%clk 0:00:11.1]} 39... a5 {[%clk 0:01:45.9]} 40.
Rxg6 {[%clk 0:00:11.1]} 40... a4 {[%clk 0:01:46.4]} 41. Rf6 {[%clk 0:00:09.2]}
41... a3 {[%clk 0:01:42.8]} 42. Rxf5 {[%clk 0:00:08.5]} 42... c6 {[%clk
0:01:42.8]} 43. Rc5 {[%clk 0:00:08]} 43... Kb7 {[%clk 0:01:42.9]} 44. f5 {[%clk
0:00:05.5]} 44... Kb6 {[%clk 0:01:43.3]} 45. Rc1 {[%clk 0:00:05.1]} 45... b4
{[%clk 0:01:43.8]} 46. f6 {[%clk 0:00:05.2]} 46... b3 {[%clk 0:01:44.3]} 47. f7
{[%clk 0:00:05.3]} 47... a2 {[%clk 0:01:42.7]} 48. f8=Q {[%clk 0:00:04.1]} 48...
b2 {[%clk 0:01:43.6]} 49. Qb8+ {[%clk 0:00:04.1]} 49... Ka5 {[%clk 0:01:43.4]}
50. Qxb2 {[%clk 0:00:03.8]} 50... Ka4 {[%clk 0:01:44.3]} 51. Ra1 {[%clk
0:00:03.1]} 51... c5 {[%clk 0:01:44.3]} 52. Rxa2# {[%clk 0:00:03.1]} 1-0

[Event "Late-Titled-Tuesday-Blitz-October-10-2023"]
[Site "Chess.com"]
[Date "2023.10.10"]
[Round "3"]
[White "Championnn-9"]
[Black "temus_galaktionov"]
[Result "0-1"]
[WhiteElo "2501"]
[BlackElo "2881"]
[TimeControl "180+1"]
[EndTime "14:26:15 PDT"]
[Termination "temus_galaktionov won on time"]

1. d4 {[%clk 0:03:00.9]} 1... c6 {[%clk 0:03:00.9]} 2. Bf4 {[%clk 0:02:59.7]}
2... g6 {[%clk 0:03:01.8]} 3. e3 {[%clk 0:02:50.1]} 3... d6 {[%clk 0:03:02]} 4.
Nd2 {[%clk 0:02:46.7]} 4... Bg7 {[%clk 0:03:02]} 5. Bc4 {[%clk 0:02:45]} 5...
Nd7 {[%clk 0:02:59.5]} 6. Bg3 {[%clk 0:02:41.3]} 6... Ngf6 {[%clk 0:02:58.8]} 7.
Ngf3 {[%clk 0:02:35.6]} 7... O-O {[%clk 0:02:58.6]} 8. O-O {[%clk 0:02:33.8]}
8... a5 {[%clk 0:02:58.1]} 9. a4 {[%clk 0:02:33.8]} 9... Nh5 {[%clk 0:02:57.9]}
10. Bh4 {[%clk 0:02:33.7]} 10... h6 {[%clk 0:02:58]} 11. c3 {[%clk 0:02:24.6]}
11... Ndf6 {[%clk 0:02:50.3]} 12. h3 {[%clk 0:02:16.3]} 12... g5 {[%clk
0:02:50.3]} 13. Bg3 {[%clk 0:02:13.8]} 13... Nxg3 {[%clk 0:02:49.8]} 14. fxg3
{[%clk 0:02:14.7]} 14... d5 {[%clk 0:02:48.6]} 15. Bd3 {[%clk 0:02:14.4]} 15...
g4 {[%clk 0:02:45.9]} 16. Ne5 {[%clk 0:02:04]} 16... gxh3 {[%clk 0:02:45]} 17.
e4 {[%clk 0:02:01.4]} 17... dxe4 {[%clk 0:02:37.9]} 18. Nxe4 {[%clk 0:01:57.9]}
18... hxg2 {[%clk 0:02:34.3]} 19. Rf4 {[%clk 0:01:41.6]} 19... Nxe4 {[%clk
0:02:27.3]} 20. Rxe4 {[%clk 0:01:35.6]} 20... Bf5 {[%clk 0:02:26.7]} 21. Rg4
{[%clk 0:01:32.1]} 21... Bxg4 {[%clk 0:02:24.2]} 22. Qxg4 {[%clk 0:01:33]} 22...
e6 {[%clk 0:02:15]} 23. Re1 {[%clk 0:01:27.3]} 23... Qg5 {[%clk 0:02:14.3]} 24.
Qe4 {[%clk 0:01:26.3]} 24... f5 {[%clk 0:02:09.5]} 25. Qf3 {[%clk 0:01:24.9]}
25... Rae8 {[%clk 0:02:06.4]} 26. Bc4 {[%clk 0:01:24.1]} 26... Kh7 {[%clk
0:02:06.1]} 27. Nd7 {[%clk 0:01:20.7]} 27... Rf7 {[%clk 0:02:05]} 28. Nc5 {[%clk
0:01:19.2]} 28... Rfe7 {[%clk 0:01:58.4]} 29. Bxe6 {[%clk 0:01:11.4]} 29... Kh8
{[%clk 0:01:57.6]} 30. Re2 {[%clk 0:01:08.2]} 30... b6 {[%clk 0:01:57]} 31. Qxc6
{[%clk 0:00:45.4]} 31... bxc5 {[%clk 0:01:56.5]} 32. d5 {[%clk 0:00:46.1]} 32...
Qg4 {[%clk 0:01:45.7]} 33. Qb5 {[%clk 0:00:37.1]} 33... Qh3 {[%clk 0:01:40.6]}
34. Rxg2 {[%clk 0:00:34.3]} 34... Qh5 {[%clk 0:01:31.4]} 35. Qd3 {[%clk
0:00:23.8]} 35... Rd8 {[%clk 0:01:27.9]} 36. Bxf5 {[%clk 0:00:10.1]} 36... Re1+
{[%clk 0:01:21.9]} 37. Kf2 {[%clk 0:00:10.2]} 37... Rd1 {[%clk 0:01:22]} 38. Qe3
{[%clk 0:00:08.1]} 38... Qxf5+ {[%clk 0:01:21.3]} 39. Ke2 {[%clk 0:00:07.7]}
39... Qxd5 {[%clk 0:01:20.3]} 40. Rf2 {[%clk 0:00:02.9]} 40... Qd2+ {[%clk
0:01:20.2]} 41. Kf3 {[%clk 0:00:03]} 41... Qxe3+ {[%clk 0:01:20.3]} 42. Kxe3
{[%clk 0:00:03]} 42... R8d3+ {[%clk 0:01:18.7]} 43. Ke2 {[%clk 0:00:02.9]} 43...
R3d2+ {[%clk 0:01:19.1]} 44. Ke3 {[%clk 0:00:02.5]} 44... Rxf2 {[%clk
0:01:19.7]} 0-1

[Event "Late-Titled-Tuesday-Blitz-October-10-2023"]
[Site "Chess.com"]
[Date "2023.10.10"]
[Round "3"]
[White "canary2016"]
[Black "AsaHoffmann"]
[Result "1-0"]
[WhiteElo "2183"]
[BlackElo "2391"]
[TimeControl "180+1"]
[EndTime "14:26:20 PDT"]
[Termination "canary2016 won by resignation"]

1. e4 {[%clk 0:02:56.3]} 1... d6 {[%clk 0:02:56.7]} 2. d4 {[%clk 0:02:52.6]}
2... Nf6 {[%clk 0:02:52.7]} 3. Nc3 {[%clk 0:02:49.6]} 3... c6 {[%clk 0:02:52.5]}
4. Nf3 {[%clk 0:02:43.6]} 4... Bg4 {[%clk 0:02:51.8]} 5. Be2 {[%clk 0:02:37.7]}
5... e6 {[%clk 0:02:51.6]} 6. O-O {[%clk 0:02:36.9]} 6... d5 {[%clk 0:02:51.7]}
7. e5 {[%clk 0:02:33.1]} 7... Nfd7 {[%clk 0:02:51]} 8. Bg5 {[%clk 0:02:26]} 8...
Be7 {[%clk 0:02:50.6]} 9. Bxe7 {[%clk 0:02:25.9]} 9... Qxe7 {[%clk 0:02:50.3]}
10. h3 {[%clk 0:02:26.8]} 10... Bh5 {[%clk 0:02:49.7]} 11. Na4 {[%clk 0:02:20]}
11... c5 {[%clk 0:02:44.5]} 12. dxc5 {[%clk 0:02:18.8]} 12... Nxc5 {[%clk
0:02:44.3]} 13. Nxc5 {[%clk 0:02:18.6]} 13... Qxc5 {[%clk 0:02:44.2]} 14. Rc1
{[%clk 0:02:17.1]} 14... Nc6 {[%clk 0:02:43.7]} 15. c4 {[%clk 0:02:16.7]} 15...
d4 {[%clk 0:02:43.6]} 16. a3 {[%clk 0:02:07.7]} 16... Bxf3 {[%clk 0:02:38.7]}
17. Bxf3 {[%clk 0:02:06.4]} 17... Nxe5 {[%clk 0:02:35.3]} 18. Bxb7 {[%clk
0:02:02]} 18... Rb8 {[%clk 0:02:34.7]} 19. Qa4+ {[%clk 0:01:54.3]} 19... Ke7
{[%clk 0:02:33.1]} 20. b4 {[%clk 0:01:50]} 20... Qc7 {[%clk 0:02:26.3]} 21. Be4
{[%clk 0:01:46.6]} 21... f5 {[%clk 0:02:22.7]} 22. Bb1 {[%clk 0:01:42.2]} 22...
Rhd8 {[%clk 0:02:20.9]} 23. Rfd1 {[%clk 0:01:41.7]} 23... d3 {[%clk 0:02:07.4]}
24. Rc3 {[%clk 0:01:30.9]} 24... d2 {[%clk 0:02:03]} 25. Qc2 {[%clk 0:01:27.1]}
25... Rbc8 {[%clk 0:02:00.7]} 26. Rxd2 {[%clk 0:01:25.6]} 26... Rxd2 {[%clk
0:01:58.1]} 27. Qxd2 {[%clk 0:01:25.4]} 27... Nxc4 {[%clk 0:01:57.7]} 28. Qg5+
{[%clk 0:01:24.9]} 28... Kf7 {[%clk 0:01:57.2]} 29. Ba2 {[%clk 0:01:19.7]} 29...
Qe5 {[%clk 0:01:38]} 30. Rxc4 {[%clk 0:01:07.8]} 30... Rxc4 {[%clk 0:01:32.3]}
31. Bxc4 {[%clk 0:01:07.3]} 31... Qe1+ {[%clk 0:01:31.5]} 32. Bf1 {[%clk
0:01:04]} 32... Qa1 {[%clk 0:01:26.5]} 33. Qg3 {[%clk 0:01:00.2]} 33... e5
{[%clk 0:01:23.3]} 34. Qd3 {[%clk 0:00:58.4]} 34... Kf6 {[%clk 0:01:22.1]} 35.
Qd6+ {[%clk 0:00:52.3]} 35... Kg5 {[%clk 0:01:20.8]} 36. Qe7+ {[%clk 0:00:52.2]}
36... Kg6 {[%clk 0:01:19.6]} 37. Qxa7 {[%clk 0:00:50.8]} 37... e4 {[%clk
0:01:17.8]} 38. b5 {[%clk 0:00:50.4]} 38... f4 {[%clk 0:01:17.1]} 39. Qb6+
{[%clk 0:00:44.3]} 39... Kf5 {[%clk 0:01:16.5]} 40. Qc5+ {[%clk 0:00:43.9]}
40... Kf6 {[%clk 0:01:16.2]} 41. Qd6+ {[%clk 0:00:42.2]} 41... Kf5 {[%clk
0:01:15.5]} 42. Qd7+ {[%clk 0:00:41.5]} 42... Kf6 {[%clk 0:01:15.2]} 43. Qd6+
{[%clk 0:00:36.6]} 43... Kf5 {[%clk 0:01:15]} 44. b6 {[%clk 0:00:36.6]} 44...
Qb2 {[%clk 0:01:13.8]} 45. Qd5+ {[%clk 0:00:34.1]} 45... Kf6 {[%clk 0:01:13]}
46. Qxe4 {[%clk 0:00:31.1]} 46... Qxb6 {[%clk 0:01:12.2]} 47. Qxf4+ {[%clk
0:00:31]} 47... Ke7 {[%clk 0:01:11.2]} 48. Qb4+ {[%clk 0:00:28.8]} 48... Qd6
{[%clk 0:01:09.1]} 49. Qxd6+ {[%clk 0:00:28.2]} 49... Kxd6 {[%clk 0:01:09]} 50.
a4 {[%clk 0:00:27.9]} 50... Kc5 {[%clk 0:01:08.6]} 51. Bb5 {[%clk 0:00:28.8]}
1-0